fUSD/lending_fUSD_20240506
["ID","MTS","AMOUNT","RATE_DAILY","PERIOD"]
[326497676,1715010651777,-534.19,0.00024657,2]
[326497677,1715010651786,-530.99,0.00024657,2]
[326497678,1715010651795,-500.0,0.00024657,2]
[326497679,1715010651805,-1623.81,0.00024657,2]
[326497680,1715010651814,-660.89,0.00024657,2]
[326497681,1715010651824,-1155.61,0.00024657,2]
[326497682,1715010651835,-821.02,0.00024657,2]
[326497683,1715010651844,-582.7,0.00024657,2]
[326497684,1715010651855,-500.0,0.00024657,2]
[326497685,1715010651864,-500.0,0.00024657,2]
[326497686,1715010651874,-500.0,0.00024657,2]
[326497687,1715010651883,-500.0,0.00024657,2]
[326497688,1715010651892,-500.0,0.00024657,2]
[326497689,1715010651901,-1555.01,0.00024657,2]
[326497690,1715010651910,-500.0,0.00024657,2]
[326497691,1715010651919,-500.0,0.00024657,2]
[326497692,1715010651929,-1765.16,0.00024657,2]
[326497693,1715010651939,-500.0,0.00024657,2]
[326497694,1715010651948,-500.0,0.00024657,2]
[326497695,1715010651958,-2165.04,0.00024657,2]
[326497696,1715010651968,-581.48,0.00024657,2]
[326497697,1715010651977,-586.47,0.00024657,2]
[326497698,1715010651986,-1849.08084222,0.00024657,2]
[326497699,1715010652067,-683.21915778,0.00024657,2]
[326497700,1715010652076,-161.12483518,0.00024657,2]
[326497701,1715010652088,-339.05516482,0.00024657,2]
[326497702,1715010652102,-370.23968852,0.00024657,2]
[326497742,1715011834367,-4656.3329,0.00011897,2]
[326497799,1715011846615,-1077.71805683,0.00011897,2]
[326497801,1715011846627,-1464.85383896,0.00011897,2]
[326497804,1715011846639,-306.36403967,0.00011897,2]
[326497806,1715011846648,-3.23596034,0.00011897,2]
[326497808,1715011846660,-146.76403966,0.00011897,2]
[326497810,1715011846669,-577.38504862,0.00011898,2]
[326497825,1715011846975,-5015.0,0.00011898,2]
[326497846,1715011848300,-3188.65,0.00011898,2]
[326497847,1715011848419,-1369.46439078,0.00011898,2]
[326497857,1715012224058,-546.30785974,0.00011794,2]
[326497858,1715012225415,-3453.69214026,0.00011795,2]
[326497859,1715012226595,-1257.22250706,0.00011795,2]
[326497860,1715012226926,-150.0,0.00011796,2]
[326497861,1715012227267,-2592.77749294,0.00011797,2]
[326497862,1715012228373,-4000.0,0.00011797,2]
[326497863,1715012228433,-301.66550706,0.00011797,2]
[326497864,1715012228455,-3498.6963,0.00011797,2]
[326497865,1715012228479,-199.63819294,0.00011898,2]
[326497866,1715012228674,-2800.36180706,0.00011898,2]
[326497867,1715012228697,-1199.63819294,0.00011999,2]
[326497868,1715012229913,-4000.0,0.00011999,2]
[326497869,1715012230147,-4000.0,0.00011999,2]
[326497870,1715012230574,-4000.0,0.00011999,2]
[326497871,1715012230825,-4000.0,0.00011999,2]
[326497872,1715012233846,-4000.0,0.00011999,2]
[326497873,1715012234832,-4000.0,0.00011999,2]
[326497874,1715012235444,-4000.0,0.00011999,2]
[326497875,1715012236931,-2646.64878774,0.00011999,2]
[326497876,1715012236971,-1353.35121226,0.00012,2]
[326497877,1715012239677,-250.4611882,0.00012,2]
[326497878,1715012276473,1138.02541,0.00012,2]
[326497879,1715012282215,2611.5134018,0.0001188,2]
[326497880,1715012282238,3889.87308198,0.0001188,2]
[326497881,1715012327385,110.12691802,0.00012,2]
[326497882,1715012328363,4000.0,0.00012,2]
[326497883,1715012328786,4000.0,0.00012,2]
[326497884,1715012328811,4000.0,0.00012,2]
[326497885,1715012328835,4000.0,0.00012,2]
[326497886,1715012328859,4000.0,0.00012,2]
[326497887,1715012330288,-4000.0,0.00012,2]
[326497888,1715012348219,-4000.0,0.00012,2]
[326497889,1715012349122,-4000.0,0.00012,2]
[326497890,1715012350389,-1083.18262819,0.000119,2]
[326497891,1715012350415,-2916.81737181,0.00012,2]
[326497893,1715012351476,-4000.0,0.00012,2]
[326497894,1715012352182,-4000.0,0.00012,2]
[326497895,1715012360383,-156.0,0.00011999,2]
[326497896,1715012360417,-3844.0,0.00012,2]
[326497897,1715012360704,-4000.0,0.00012,2]
[326497898,1715012362147,-1295.87608614,0.00011999,2]
[326497899,1715012362172,-2704.12391386,0.00012,2]
[326497901,1715012371361,-4000.0,0.00012,2]
[326497902,1715012371749,-4000.0,0.00012,2]
[326497903,1715012385095,-409.05075285,0.00011939,2]
[326497904,1715012385120,-236.89456322,0.00011939,2]
[326497905,1715012385143,-200.0,0.0001194,2]
[326497906,1715012385179,-3154.05468393,0.00011998,2]
[326497907,1715012385290,-125.41626265,0.00011998,2]
[326497908,1715012385329,-2218.69268549,0.00011999,2]
[326497909,1715012385366,-343.85597693,0.00011999,2]
[326497910,1715012385397,-1312.03507493,0.00012,2]
[326497911,1715012388218,-4000.0,0.00012,2]
[326497912,1715012390176,-4000.0,0.00012,2]
[326497913,1715012390566,-527.86451827,0.00011938,2]
[326497914,1715012390592,-3472.13548173,0.00012,2]
[326497915,1715012404622,-4000.0,0.00012,2]
[326497916,1715012404795,-4000.0,0.00012,2]
[326497918,1715012414292,-4000.0,0.00012,2]
[326497945,1715013033455,-7505.26883546,0.00011585,2]
[326497946,1715013033464,-155.0,0.00011586,2]
[326497947,1715013033474,-1295.87608614,0.00011586,2]
[326497948,1715013033484,-1561.26800831,0.00011587,2]
[326497949,1715013033493,-528.22593873,0.00011679,2]
[326497950,1715013033503,-872.70795906,0.0001168,2]
[326497951,1715013033513,-3499.67939162,0.00011698,2]
[326497952,1715013033524,-150.0,0.00011998,2]
[326497953,1715013033535,-37218.26224545,0.00012,2]
[326497954,1715013033544,-155.0,0.00012,2]
[326497955,1715013033554,-400.60472374,0.00012,2]
[326497956,1715013033564,-156.06605412,0.00012,2]
[326497957,1715013033574,-2419.40354792,0.00012,2]
[326497958,1715013033583,-366.24814165,0.00012,2]
[326497959,1715013033593,-173.28060052,0.00012,2]
[326497960,1715013033603,-298.47108253,0.00012,2]
[326497961,1715013033614,-1000.0,0.00012,2]
[326497962,1715013033623,-2222.41597443,0.00012889,2]
[326497963,1715013033633,-188.65310695,0.00013,2]
[326497964,1715013033643,-250.0,0.000137,2]
[326497965,1715013033653,-1225.44903621,0.000165,2]
[326497966,1715013033663,-186.48,0.00016676,2]
[326497967,1715013033673,-226.37,0.00017532,2]
[326497968,1715013033686,-971.0,0.000176,2]
[326497969,1715013033696,-4753.0,0.000177,2]
[326497970,1715013033706,-2078.70757192,0.00018,2]
[326497971,1715013033715,-1250.0,0.00018,3]
[326497972,1715013033726,-252.68095448,0.00018699,2]
[326497973,1715013033736,-162.25,0.00019178,2]
[326497974,1715013033746,-20550.6,0.0001989,2]
[326497975,1715013033756,-150.0,0.0001997,2]
[326497976,1715013033765,-1300.0,0.0002,3]
[326497977,1715013033781,-155.0,0.0002,2]
[326497978,1715013033790,-191.26,0.00020001,2]
[326497979,1715013033800,-162.58,0.00020156,2]
[326497980,1715013033811,-154.86,0.00020243,2]
[326497981,1715013033820,-154.86,0.00020339,2]
[326497982,1715013033831,-154.86,0.00020435,2]
[326497983,1715013033840,-195.24,0.00020455,2]
[326497984,1715013033852,-154.86,0.00020531,2]
[326497985,1715013033862,-591.15,0.0002058,2]
[326497986,1715013033872,-250.0,0.00020582,2]
[326497987,1715013033881,-154.86,0.00020627,2]
[326497988,1715013033891,-154.86,0.00020722,2]
[326497989,1715013033901,-704.62,0.00020769,2]
[326497990,1715013033911,-154.86,0.00020818,2]
[326497991,1715013033920,-6163.83,0.00020837,2]
[326497992,1715013033930,-599.28,0.00020855,2]
[326497993,1715013033941,-155.0,0.000209,2]
[326497994,1715013033951,-154.86,0.00020914,2]
[326497995,1715013033960,-352.21,0.0002094,2]
[326497996,1715013033970,-716.73138077,0.00021,2]
[326497997,1715013033979,-154.86,0.0002101,2]
[326497998,1715013033989,-154.86,0.00021106,2]
[326497999,1715013033999,-3100.0,0.00021113,2]
[326498000,1715013034009,-162.63,0.00021122,2]
[326498001,1715013034018,-154.86,0.00021202,2]
[326498002,1715013034028,-152.44,0.00021213,2]
[326498003,1715013034038,-154.86,0.00021298,2]
[326498004,1715013034047,-172.65,0.00021481,2]
[326498005,1715013034058,-1132.8,0.00021496,2]
[326498006,1715013034067,-1132.8,0.00021502,2]
[326498007,1715013034077,-1132.8,0.00021507,2]
[326498008,1715013034087,-1132.8,0.00021513,2]
[326498009,1715013034096,-1132.8,0.00021519,2]
[326498010,1715013034106,-1132.8,0.00021524,2]
[326498011,1715013034117,-1132.8,0.0002153,2]
[326498012,1715013034127,-1132.8,0.00021536,2]
[326498013,1715013034137,-1132.8,0.00021541,2]
[326498014,1715013034147,-1132.8,0.00021547,2]
[326498015,1715013034156,-1132.8,0.00021553,2]
[326498016,1715013034165,-1132.8,0.00021558,2]
[326498017,1715013034175,-1132.8,0.00021564,2]
[326498018,1715013034185,-1132.8,0.0002157,2]
[326498019,1715013034194,-1132.8,0.00021575,2]
[326498020,1715013034205,-1132.8,0.00021581,2]
[326498021,1715013034214,-1132.8,0.00021586,2]
[326498022,1715013034223,-1132.8,0.00021592,2]
[326498023,1715013034234,-1132.8,0.00021598,2]
[326498024,1715013034243,-1132.8,0.00021603,2]
[326498025,1715013034252,-165.4680478,0.00021729,2]
[326498026,1715013034262,-32000.0,0.00021799,2]
[326498027,1715013034271,-1250.0,0.000219,2]
[326498028,1715013034280,-2000.0,0.00021918,3]
[326498029,1715013034290,-250.0,0.00021918,2]
[326498030,1715013034300,-250.0,0.00021918,2]
[326498031,1715013034309,-1350.0,0.00022,3]
[326498032,1715013034319,-786.0242669,0.00022051,2]
[326498033,1715013034328,-171.29,0.00022052,2]
[326498034,1715013034338,-165.46804775,0.00022375,2]
[326498035,1715013034348,-150.0,0.00022414,4]
[326498036,1715013034358,-17699.97824205,0.00023,2]
[326498037,1715013034367,-165.46804775,0.00023022,2]
[326498038,1715013034378,-1007.24492021,0.00023109,2]
[326498039,1715013034388,-591.15,0.00023153,2]
[326498040,1715013034398,-327.03936688,0.00023422,7]
[326498041,1715013034407,-8114.0,0.00023582,2]
[326498042,1715013034417,-165.46804775,0.00023668,2]
[326498043,1715013034427,-352.21,0.0002368,2]
[326498044,1715013034437,-414.63,0.00023699,2]
[326498045,1715013034447,-414.63,0.00023699,2]
[326498046,1715013034456,-912.13,0.00023699,2]
[326498047,1715013034466,-912.13,0.00023699,2]
[326498048,1715013034475,-414.63,0.00023699,2]
[326498049,1715013034484,-912.13,0.00023699,2]
[326498050,1715013034495,-912.13,0.00023699,2]
[326498051,1715013034504,-912.13,0.00023699,2]
[326498052,1715013034516,-912.13,0.00023699,2]
[326498053,1715013034526,-892.09,0.00023699,2]
[326498054,1715013034536,-414.63,0.00023699,2]
[326498055,1715013034545,-912.13,0.00023699,2]
[326498056,1715013034554,-912.13,0.00023699,2]
[326498057,1715013034563,-414.63,0.00023699,2]
[326498058,1715013034572,-414.63,0.00023699,2]
[326498059,1715013034582,-912.13,0.00023699,2]
[326498060,1715013034591,-1165.33,0.00023699,2]
[326498061,1715013034600,-912.13,0.00023699,2]
[326498062,1715013034609,-912.13,0.00023699,2]
[326498063,1715013034618,-912.13,0.00023699,2]
[326498064,1715013034627,-912.13,0.00023699,2]
[326498065,1715013034636,-1735.506135,0.00023894,2]
[326498066,1715013034646,-1400.0,0.00024,3]
[326498067,1715013034655,-150.0,0.0002411,2]
[326498068,1715013034664,-1735.506135,0.00024192,2]
[326498069,1715013034674,-165.46804775,0.00024315,2]
[326498070,1715013034685,-152.0,0.00024386,3]
[326498071,1715013034696,-1000.0,0.000244,2]
[326498072,1715013034704,-800.0,0.000244,8]
[326498073,1715013034713,-264.0822,0.00024457,2]
[326498074,1715013034722,-157.43,0.0002449,2]
[326498075,1715013034732,-1735.506135,0.00024491,2]
[326498076,1715013034741,-19486.11300151,0.000245,2]
[326498077,1715013034751,-1700.0,0.000245,8]
[326498078,1715013034761,-1001.01009999,0.00024548,14]
[326498079,1715013034773,-242.17974809,0.00024555,2]
[326498080,1715013034782,-1000.0,0.00024555,2]
[326498081,1715013034792,-10000.0,0.00024557,2]
[326498082,1715013034801,-5554.8667,0.00024557,2]
[326498083,1715013034810,-5277.88409676,0.00024557,2]
[326498084,1715013034821,-1021.24160421,0.00024557,2]
[326498085,1715013034830,-159.57152389,0.00024557,2]
[326498086,1715013034839,-308.76784164,0.00024557,2]
[326498087,1715013034849,-2600.0,0.000246,8]
[326498088,1715013034858,-1211.30074394,0.00024655,2]
[326498089,1715013034875,-155.0,0.00024655,2]
[326498090,1715013034885,-5000.0,0.00024655,2]
[326498091,1715013034895,-12081.41647345,0.00024655,2]
[326498092,1715013034905,-240.19597074,0.00024655,2]
[326498093,1715013034914,-317.67550535,0.00024655,2]
[326498094,1715013034924,-887.86064167,0.00024655,2]
[326498095,1715013034936,-521.0,0.00024655,2]
[326498096,1715013034946,-950.39765068,0.00024655,2]
[326498097,1715013034956,-155.0,0.00024655,2]
[326498098,1715013034970,-377.0367828,0.00024655,2]
[326498099,1715013034988,-412.46294456,0.00024655,2]
[326498100,1715013035005,-5920.22977168,0.00024655,2]
[326498101,1715013035036,-6755.24293226,0.00024655,2]
[326498102,1715013035070,-206.88074389,0.00024655,2]
[326498103,1715013035095,-200.40599956,0.00024655,2]
[326498104,1715013035113,-200.12627691,0.00024655,2]
[326498105,1715013035131,-285.87400056,0.00024655,2]
[326498106,1715013035148,-200.11243242,0.00024655,2]
[326498107,1715013035166,-247.04156098,0.00024655,2]
[326498108,1715013035187,-155.56915793,0.00024655,2]
[326498109,1715013035205,-268.42048949,0.00024655,2]
[326498110,1715013035223,-155.0,0.00024655,2]
[326498111,1715013035238,-193.00424043,0.00024655,2]
[326498112,1715013035251,-2543.08381097,0.00024655,2]
[326498113,1715013035262,-265.84118452,0.00024655,2]
[326498114,1715013035273,-159.03360101,0.00024655,2]
[326498115,1715013035283,-3055.91272993,0.00024655,2]
[326498116,1715013035293,-173.68757667,0.00024655,2]
[326498117,1715013035304,-408.48618604,0.00024655,2]
[326498118,1715013035314,-236.81343216,0.00024655,2]
[326498119,1715013035324,-341.96790398,0.00024655,2]
[326498120,1715013035335,-2216.32339775,0.00024655,2]
[326498121,1715013035344,-2502.18780576,0.00024655,2]
[326498122,1715013035355,-385.51482581,0.00024655,2]
[326498123,1715013035372,-706.86968625,0.00024656,2]
[326498124,1715013035386,-325.87564899,0.00024656,2]
[326498125,1715013035396,-243.64207938,0.00024656,2]
[326498126,1715013035408,-408.30315124,0.00024656,2]
[326498127,1715013035418,-500.0,0.00024657,2]
[326498128,1715013035428,-758.84,0.00024657,2]
[326498129,1715013035439,-529.73,0.00024657,2]
[326498130,1715013035449,-1523.35,0.00024657,2]
[326498131,1715013035459,-2214.0691653,0.00024657,2]
[326498132,1715013035469,-500.0,0.00024657,2]
[326498133,1715013035479,-962.4,0.00024657,2]
[326498134,1715013035489,-500.0,0.00024657,2]
[326498135,1715013035500,-500.0,0.00024657,2]
[326498136,1715013035509,-947.74,0.00024657,2]
[326498137,1715013035521,-500.0,0.00024657,2]
[326498138,1715013035531,-763.23,0.00024657,2]
[326498139,1715013035541,-500.0,0.00024657,2]
[326498140,1715013035551,-808.1,0.00024657,2]
[326498141,1715013035561,-500.0,0.00024657,2]
[326498142,1715013035571,-291.46263533,0.00024657,2]
[326498143,1715013035581,-887.22,0.00024657,2]
[326498144,1715013035592,-1040.35,0.00024657,2]
[326498145,1715013035602,-500.0,0.00024657,2]
[326498146,1715013035612,-900.18,0.00024657,2]
[326498147,1715013035621,-500.0,0.00024657,2]
[326498148,1715013035631,-1530.55,0.00024657,2]
[326498149,1715013035641,-695.75,0.00024657,2]
[326498150,1715013035651,-500.0,0.00024657,2]
[326498151,1715013035660,-500.0,0.00024657,2]
[326498152,1715013035670,-1010.5,0.00024657,2]
[326498153,1715013035681,-500.0,0.00024657,2]
[326498154,1715013035693,-740.33,0.00024657,2]
[326498155,1715013035702,-500.0,0.00024657,2]
[326498156,1715013035712,-500.0,0.00024657,2]
[326498157,1715013035722,-500.0,0.00024657,2]
[326498158,1715013035733,-1434.78,0.00024657,2]
[326498159,1715013035743,-500.0,0.00024657,2]
[326498160,1715013035753,-1101.35,0.00024657,2]
[326498161,1715013035764,-501.99,0.00024657,2]
[326498162,1715013035776,-500.0,0.00024657,2]
[326498163,1715013035786,-500.0,0.00024657,2]
[326498164,1715013035796,-500.0,0.00024657,2]
[326498165,1715013035805,-519.25500988,0.00024657,2]
[326498166,1715013035815,-500.0,0.00024657,2]
[326498167,1715013035825,-500.0,0.00024657,2]
[326498168,1715013035834,-1308.04,0.00024657,2]
[326498169,1715013035844,-217.8431452,0.00024657,2]
[326498170,1715013035856,-653.43,0.00024657,2]
[326498171,1715013035866,-500.0,0.00024657,2]
[326498172,1715013035876,-655.72,0.00024657,2]
[326498173,1715013035886,-1086.84,0.00024657,2]
[326498174,1715013035895,-879.93,0.00024657,2]
[326498175,1715013035905,-834.46,0.00024657,2]
[326498176,1715013035914,-583.8,0.00024657,2]
[326498177,1715013035924,-754.02,0.00024657,2]
[326498178,1715013035933,-629.04,0.00024657,2]
[326498179,1715013035943,-500.0,0.00024657,2]
[326498180,1715013035952,-599.88,0.00024657,2]
[326498181,1715013035961,-474.23340357,0.00024657,2]
[326498182,1715013035970,-500.0,0.00024657,2]
[326498183,1715013035980,-500.0,0.00024657,2]
[326498184,1715013035990,-196.09173273,0.00024657,2]
[326498185,1715013035999,-666.85,0.00024657,2]
[326498186,1715013036009,-894.72,0.00024657,2]
[326498187,1715013036018,-1000.45,0.00024657,2]
[326498188,1715013036028,-694.79,0.00024657,2]
[326498189,1715013036037,-640.98,0.00024657,2]
[326498190,1715013036047,-500.0,0.00024657,2]
[326498191,1715013036056,-535.76,0.00024657,2]
[326498192,1715013036065,-642.69,0.00024657,2]
[326498193,1715013036075,-500.0,0.00024657,2]
[326498194,1715013036084,-500.0,0.00024657,2]
[326498195,1715013036094,-500.0,0.00024657,2]
[326498196,1715013036104,-794.43,0.00024657,2]
[326498197,1715013036113,-732.73,0.00024657,2]
[326498198,1715013036123,-566.74,0.00024657,2]
[326498199,1715013036133,-500.0,0.00024657,2]
[326498200,1715013036147,-500.0,0.00024657,2]
[326498201,1715013036167,-500.0,0.00024657,2]
[326498202,1715013036218,-553.09,0.00024657,2]
[326498203,1715013036228,-500.0,0.00024657,2]
[326498204,1715013036238,-500.0,0.00024657,2]
[326498205,1715013036248,-500.0,0.00024657,2]
[326498206,1715013036257,-500.0,0.00024657,2]
[326498207,1715013036267,-500.0,0.00024657,2]
[326498208,1715013036276,-757.5,0.00024657,2]
[326498209,1715013036286,-500.0,0.00024657,2]
[326498210,1715013036295,-500.0,0.00024657,2]
[326498211,1715013036304,-1042.53,0.00024657,2]
[326498212,1715013036314,-365.25367275,0.00024657,2]
[326498213,1715013036323,-670.95,0.00024657,2]
[326498214,1715013036333,-500.0,0.00024657,2]
[326498215,1715013036342,-500.0,0.00024657,2]
[326498216,1715013036351,-500.0,0.00024657,2]
[326498217,1715013036361,-500.0,0.00024657,2]
[326498218,1715013036370,-1170.48,0.00024657,2]
[326498219,1715013036380,-1163.53,0.00024657,2]
[326498220,1715013036390,-500.0,0.00024657,2]
[326498221,1715013036400,-500.0,0.00024657,2]
[326498222,1715013036409,-585.6,0.00024657,2]
[326498223,1715013036419,-500.0,0.00024657,2]
[326498224,1715013036428,-1479.44,0.00024657,2]
[326498225,1715013036438,-500.0,0.00024657,2]
[326498226,1715013036448,-989.83,0.00024657,2]
[326498227,1715013036457,-500.0,0.00024657,2]
[326498228,1715013036468,-500.0,0.00024657,2]
[326498229,1715013036477,-500.0,0.00024657,2]
[326498230,1715013036487,-1046.32,0.00024657,2]
[326498231,1715013036497,-500.0,0.00024657,2]
[326498232,1715013036507,-1005.94,0.00024657,2]
[326498233,1715013036517,-500.0,0.00024657,2]
[326498234,1715013036527,-500.0,0.00024657,2]
[326498235,1715013036536,-1084.62,0.00024657,2]
[326498236,1715013036546,-1045.27,0.00024657,2]
[326498237,1715013036555,-500.0,0.00024657,2]
[326498238,1715013036565,-592.62,0.00024657,2]
[326498239,1715013036574,-1072.55,0.00024657,2]
[326498240,1715013036836,-500.0,0.00024657,2]
[326498241,1715013036847,-586.74,0.00024657,2]
[326498242,1715013036860,-500.0,0.00024657,2]
[326498243,1715013036872,-531.09,0.00024657,2]
[326498244,1715013036882,-1251.44,0.00024657,2]
[326498245,1715013036891,-500.0,0.00024657,2]
[326498246,1715013036900,-816.36,0.00024657,2]
[326498247,1715013036909,-500.0,0.00024657,2]
[326498248,1715013036918,-675.87,0.00024657,2]
[326498249,1715013036927,-563.74,0.00024657,2]
[326498250,1715013036936,-500.0,0.00024657,2]
[326498251,1715013036946,-1010.22,0.00024657,2]
[326498252,1715013036956,-518.42,0.00024657,2]
[326498253,1715013036965,-500.0,0.00024657,2]
[326498254,1715013036974,-653.65,0.00024657,2]
[326498255,1715013036982,-586.81,0.00024657,2]
[326498256,1715013036991,-1485.18,0.00024657,2]
[326498257,1715013037000,-500.0,0.00024657,2]
[326498258,1715013037009,-657.79,0.00024657,2]
[326498259,1715013037019,-570.24,0.00024657,2]
[326498260,1715013037028,-500.0,0.00024657,2]
[326498261,1715013037037,-500.0,0.00024657,2]
[326498262,1715013037046,-500.0,0.00024657,2]
[326498263,1715013037055,-509.74,0.00024657,2]
[326498264,1715013037064,-862.94,0.00024657,2]
[326498265,1715013037073,-1163.25,0.00024657,2]
[326498266,1715013037082,-696.21,0.00024657,2]
[326498267,1715013037091,-510.04,0.00024657,2]
[326498268,1715013037100,-500.0,0.00024657,2]
[326498269,1715013037109,-554.86,0.00024657,2]
[326498270,1715013037118,-500.0,0.00024657,2]
[326498271,1715013037127,-500.0,0.00024657,2]
[326498272,1715013037137,-575.71342806,0.00024657,2]
[326498273,1715013037146,-501.8,0.00024657,2]
[326498274,1715013037155,-602.95,0.00024657,2]
[326498275,1715013037164,-500.0,0.00024657,2]
[326498276,1715013037173,-757.89,0.00024657,2]
[326498277,1715013037182,-1273.46,0.00024657,2]
[326498278,1715013037192,-1152.8,0.00024657,2]
[326498279,1715013037201,-500.0,0.00024657,2]
[326498280,1715013037210,-500.0,0.00024657,2]
[326498281,1715013037220,-500.0,0.00024657,2]
[326498282,1715013037229,-500.0,0.00024657,2]
[326498283,1715013037238,-500.0,0.00024657,2]
[326498284,1715013037248,-500.0,0.00024657,2]
[326498285,1715013037257,-500.0,0.00024657,2]
[326498286,1715013037266,-500.0,0.00024657,2]
[326498287,1715013037276,-500.0,0.00024657,2]
[326498288,1715013037285,-500.0,0.00024657,2]
[326498289,1715013037294,-500.0,0.00024657,2]
[326498290,1715013037304,-500.0,0.00024657,2]
[326498291,1715013037313,-500.0,0.00024657,2]
[326498292,1715013037322,-704.5,0.00024657,2]
[326498293,1715013037332,-1447.31,0.00024657,2]
[326498294,1715013037341,-500.85327052,0.00024657,2]
[326498295,1715013037351,-632.28,0.00024657,2]
[326498296,1715013037360,-500.0,0.00024657,2]
[326498297,1715013037369,-500.0,0.00024657,2]
[326498298,1715013037398,-546.76,0.00024657,2]
[326498299,1715013037430,-1627.91,0.00024657,2]
[326498300,1715013037478,-1124.93,0.00024657,2]
[326498301,1715013037494,-500.0,0.00024657,2]
[326498302,1715013037503,-500.0,0.00024657,2]
[326498303,1715013037513,-500.0,0.00024657,2]
[326498304,1715013037522,-633.19,0.00024657,2]
[326498305,1715013037532,-1005.73,0.00024657,2]
[326498306,1715013037541,-1879.22,0.00024657,2]
[326498307,1715013037550,-606.84,0.00024657,2]
[326498308,1715013037559,-647.82,0.00024657,2]
[326498309,1715013037569,-500.0,0.00024657,2]
[326498310,1715013037578,-1241.49,0.00024657,2]
[326498311,1715013037587,-500.0,0.00024657,2]
[326498312,1715013037596,-500.0,0.00024657,2]
[326498313,1715013037606,-630.29902647,0.00024657,2]
[326498314,1715013037615,-500.0,0.00024657,2]
[326498315,1715013037625,-1107.03,0.00024657,2]
[326498316,1715013037635,-503.05,0.00024657,2]
[326498317,1715013037645,-552.59,0.00024657,2]
[326498318,1715013037656,-775.91,0.00024657,2]
[326498319,1715013037669,-500.0,0.00024657,2]
[326498320,1715013037681,-500.0,0.00024657,2]
[326498321,1715013037692,-500.0,0.00024657,2]
[326498322,1715013037702,-500.0,0.00024657,2]
[326498323,1715013037713,-500.0,0.00024657,2]
[326498324,1715013037722,-202.77,0.00024657,2]
[326498325,1715013037731,-989.8,0.00024657,2]
[326498326,1715013037740,-500.0,0.00024657,2]
[326498327,1715013037750,-535.35,0.00024657,2]
[326498328,1715013037759,-1386.06,0.00024657,2]
[326498329,1715013037768,-996.91,0.00024657,2]
[326498330,1715013037782,-1201.31,0.00024657,2]
[326498331,1715013037791,-500.0,0.00024657,2]
[326498332,1715013037800,-500.0,0.00024657,2]
[326498333,1715013037810,-500.0,0.00024657,2]
[326498334,1715013037821,-500.0,0.00024657,2]
[326498335,1715013037831,-500.0,0.00024657,2]
[326498336,1715013037840,-675.12,0.00024657,2]
[326498337,1715013037851,-710.94,0.00024657,2]
[326498338,1715013037861,-500.0,0.00024657,2]
[326498339,1715013037871,-1023.48,0.00024657,2]
[326498340,1715013037880,-500.0,0.00024657,2]
[326498341,1715013037889,-500.0,0.00024657,2]
[326498342,1715013037898,-500.0,0.00024657,2]
[326498343,1715013037907,-951.94,0.00024657,2]
[326498344,1715013037916,-500.0,0.00024657,2]
[326498345,1715013037926,-500.0,0.00024657,2]
[326498346,1715013037936,-3126.86,0.00024657,2]
[326498347,1715013037945,-861.85,0.00024657,2]
[326498348,1715013037954,-718.02,0.00024657,2]